[Event "Belt and Road Women 2024"]
[Site "Yuecheng Shaoxing"]
[Date "2024.07.26"]
[Round "3.12"]
[White "Soumya, Swaminathan"]
[Black "Kairbekova, Amina"]
[Result "1/2-1/2"]
[ECO "C79"]
[WhiteElo "2258"]
[BlackElo "2244"]
[Annotator "RC"]
[PlyCount "154"]
[EventDate "2024.08.01"]
[EventType "swiss"]
[EventCountry "CHN"]
[SourceTitle "playchess.com"]
[Source "ChessBase"]
[SourceQuality "1"]
[TimeControl "5400+30"]

1. e4 {[%emt 0:00:09]} e5 {[%emt 0:00:24]} 2. Nf3 {[%emt 0:00:44]} Nc6 {[%emt 0:00:06]} 3. Bb5 {[%emt 0:00:05]} a6 {[%emt 0:00:03]} 4. Ba4 {[%emt 0:00:08]} Nf6 {[%emt 0:00:03]} 5. O-O {[%emt 0:00:28]} d6 {[%emt 0:00:04]} 6. c3 {[%emt 0:03:40]} Bd7 {[%emt 0:00:14]} 7. Re1 {[%emt 0:04:29]} g6 {[%emt 0:00:12]} 8. d4 {[%emt 0:00:47]} Bg7 {[%emt 0:00:06]} 9. h3 {[%emt 0:00:36]} O-O {[%emt 0:00:06]} 10. Bc2 {[%emt 0:01:13]} Nh5 {[%emt 0:00:17]} 11. a4 {[%emt 0:01:10]} Kh8 {[%emt 0:01:45]} 12. Na3 {[%emt 0:00:41]} Qe8 {[%emt 0:01:38]} 13. Nc4 {[%emt 0:04:08]} a5 {[%emt 0:00:38]} 14. g4 {[%emt 0:14:25]} Nf6 {[%emt 0:19:13]} 15. dxe5 {[%emt 0:03:13]} dxe5 {[%emt 0:06:45]} 16. b3 {[%emt 0:00:08]} Rd8 {[%emt 0:04:58]} 17. Qe2 {[%emt 0:00:23]} h5 {[%emt 0:03:36]} 18. Nh2 {[%emt 0:06:02]} Qe6 {[%emt 0:01:47]} 19. Bg5 {[%emt 0:14:45]} Ra8 {[%emt 0:04:30]} 20. Rad1 {[%emt 0:08:56]} Nh7 {[%emt 0:01:26]} 21. Bc1 {[%emt 0:00:23]} Ne7 {[%emt 0:04:29]} 22. Ba3 {[%emt 0:07:44]} Rfd8 {[%emt 0:02:44]} 23. Qe3 {[%emt 0:07:33]} Ng8 {[%emt 0:02:02]} 24. Qg3 {[%emt 0:05:56]} Bxa4 {[%emt 0:04:24]} 25. Rxd8 {[%emt 0:01:25]} Rxd8 {[%emt 0:00:19]} 26. Nxa5 {[%emt 0:00:06]} Rd2 {[%emt 0:02:38]} 27. Bd1 {[%emt 0:01:29]} Be8 {[%emt 0:09:56]} 28. Bc1 {[%emt 0:04:01]} h4 {[%emt 0:05:13]} 29. Qxh4 {[%emt 0:00:16]} Rd3 {[%emt 0:00:04]} 30. Nf3 {[%emt 0:01:26]} f6 {[%emt 0:04:57]} 31. Nc4 {[%emt 0:01:51]} g5 {[%emt 0:03:31]} 32. Qg3 {[%emt 0:00:26]} Ne7 {[%emt 0:00:12]} 33. Bd2 {[%emt 0:01:51]} b5 {[%emt 0:01:30]} 34. Ne3 {[%emt 0:00:35]} Qd7 {[%emt 0:01:53]} 35. Nf1 {[%emt 0:00:10]} Ng6 {[%emt 0:02:40]} 36. Be2 {[%emt 0:01:02]} Rd6 {[%emt 0:00:06]} 37. c4 {[%emt 0:00:47]} bxc4 {[%emt 0:00:56]} 38. Bxc4 {[%emt 0:00:08]} Bf7 {[%emt 0:00:07]} 39. Ne3 {[%emt 0:03:22]} Bxc4 {[%emt 0:02:09]} 40. Nxc4 {[%emt 0:00:03]} Rd3 {[%emt 0:00:08]} 41. Kh2 {[%emt 0:02:01]} Rxb3 {[%emt 0:02:16]} 42. Be3 {[%emt 0:02:12]} Nhf8 {[%emt 0:03:32]} 43. Qg1 {[%emt 0:00:26]} Ne6 {[%emt 0:01:47]} 44. Rd1 {[%emt 0:00:09]} Qa4 {[%emt 0:01:45]} 45. Qf1 {[%emt 0:00:39]} Rc3 {[%emt 0:00:50]} 46. Rc1 {[%emt 0:00:24]} Rxc1 {[%emt 0:01:57]} 47. Qxc1 {[%emt 0:00:02]} Bf8 {[%emt 0:00:12]} 48. Ncd2 {[%emt 0:00:36]} Qd7 {[%emt 0:00:24]} 49. Qc3 {[%emt 0:00:47]} Ngf4 {[%emt 0:00:59]} 50. Ng1 {[%emt 0:00:50]} c5 {[%emt 0:01:57]} 51. Nf1 {[%emt 0:00:35]} Qb5 {[%emt 0:01:17]} 52. Nd2 {[%emt 0:00:28]} Kg7 {[%emt 0:01:13]} 53. Qc4 {[%emt 0:00:12]} Qa5 {[%emt 0:00:27]} 54. Nf1 {[%emt 0:00:17]} Qb4 {[%emt 0:00:26]} 55. Nd2 {[%emt 0:00:55]} Kf7 {[%emt 0:00:22]} 56. Qa2 {[%emt 0:00:18]} Kg7 {[%emt 0:00:44]} 57. Kg3 {[%emt 0:00:26]} Qb7 {[%emt 0:00:29]} 58. h4 {[%emt 0:00:52]} gxh4+ {[%emt 0:00:05]} 59. Kxh4 {[%emt 0:00:04]} Kh8 {[%emt 0:00:24]} 60. Kg3 {[%emt 0:00:21]} Qh7 {[%emt 0:00:14]} 61. f3 {[%emt 0:00:59]} Qh1 {[%emt 0:01:19]} 62. Nc4 {[%emt 0:00:12]} Bh6 {[%emt 0:00:21]} 63. Qh2 {[%emt 0:00:47]} Qxh2+ {[%emt 0:00:38]} 64. Kxh2 {[%emt 0:00:02]} Kg7 {[%emt 0:00:13]} 65. Kg3 {[%emt 0:00:22]} Kg6 {[%emt 0:00:17]} 66. Bd2 {[%emt 0:01:10]} Nd4 {[%emt 0:00:19]} 67. Bxf4 {[%emt 0:00:37]} Bxf4+ {[%emt 0:00:12]} 68. Kf2 {[%emt 0:00:07]} Bg5 {[%emt 0:00:43]} 69. Ne2 {[%emt 0:00:18]} Bh4+ {[%emt 0:00:06]} 70. Ke3 {[%emt 0:00:12]} Nc2+ {[%emt 0:00:11]} 71. Kd2 {[%emt 0:00:06]} Ne1 {[%emt 0:01:06]} 72. Ke3 {[%emt 0:01:27]} Ng2+ {[%emt 0:00:20]} 73. Kd3 {[%emt 0:00:36]} Bf2 {[%emt 0:00:06]} 74. Nc3 {[%emt 0:00:29]} Bd4 {[%emt 0:01:11]} 75. Nd5 {[%emt 0:00:15]} Kg5 {[%emt 0:00:13]} 76. Ke2 {[%emt 0:00:42]} Kg6 {[%emt 0:00:45]} 77. Nd6 {[%emt 0:00:20]} Kg5 {[%emt 0:00:39]} 1/2-1/2

[Event "Belt and Road Women 2024"]
[Site "Yuecheng Shaoxing"]
[Date "2024.07.26"]
[Round "3.13"]
[White "Li, Xueyi"]
[Black "Chen, Yining"]
[Result "1/2-1/2"]
[ECO "E01"]
[WhiteElo "2209"]
[BlackElo "2300"]
[Annotator "RC"]
[PlyCount "95"]
[EventDate "2024.08.01"]
[EventType "swiss"]
[EventCountry "CHN"]
[SourceTitle "playchess.com"]
[Source "ChessBase"]
[SourceQuality "1"]
[TimeControl "5400+30"]

1. d4 {[%emt 0:00:03]} Nf6 {[%emt 0:00:18]} 2. c4 {[%emt 0:00:05]} e6 {[%emt 0:00:06]} 3. Nf3 {[%emt 0:00:04]} d5 {[%emt 0:00:20]} 4. Nc3 {[%emt 0:00:06]} c6 {[%emt 0:01:23]} 5. g3 {[%emt 0:00:54]} dxc4 {[%emt 0:01:26]} 6. Bg2 {[%emt 0:00:05]} Nbd7 {[%emt 0:00:17]} 7. O-O {[%emt 0:00:46]} b5 {[%emt 0:03:16]} 8. a4 {[%emt 0:01:16]} Qb6 {[%emt 0:03:45]} 9. Ne5 {[%emt 0:16:56]} Bb7 {[%emt 0:25:09]} 10. Nxd7 {[%emt 0:00:37]} Nxd7 {[%emt 0:00:25]} 11. Be3 {[%emt 0:00:02]} b4 {[%emt 0:10:09]} 12. a5 {[%emt 0:04:19]} Qa6 {[%emt 0:04:22]} 13. Ne4 {[%emt 0:04:36]} Rc8 {[%emt 0:02:38]} 14. Qa4 {[%emt 0:09:06]} Qb5 {[%emt 0:09:33]} 15. Qxb5 {[%emt 0:11:36]} cxb5 {[%emt 0:00:02]} 16. Nf6+ {[%emt 0:00:13]} Nxf6 {[%emt 0:01:30]} 17. Bxb7 {[%emt 0:00:05]} Rc7 {[%emt 0:00:38]} 18. Ba6 {[%emt 0:00:17]} Bd6 {[%emt 0:01:56]} 19. Bxb5+ {[%emt 0:03:25]} Ke7 {[%emt 0:02:53]} 20. Rfc1 {[%emt 0:20:43]} c3 {[%emt 0:00:47]} 21. bxc3 {[%emt 0:00:20]} bxc3 {[%emt 0:01:27]} 22. Bg5 {[%emt 0:00:57]} Rb8 {[%emt 0:02:09]} 23. Bd3 {[%emt 0:01:21]} h6 {[%emt 0:01:18]} 24. Bxf6+ {[%emt 0:01:08]} gxf6 {[%emt 0:00:16]} 25. Rab1 {[%emt 0:01:26]} Rxb1 {[%emt 0:01:29]} 26. Rxb1 {[%emt 0:00:28]} Ba3 {[%emt 0:00:37]} 27. Rb3 {[%emt 0:00:55]} Bb2 {[%emt 0:06:19]} 28. Bc2 {[%emt 0:00:07]} e5 {[%emt 0:02:05]} 29. d5 {[%emt 0:06:30]} f5 {[%emt 0:03:23]} 30. Bxf5 {[%emt 0:03:32]} c2 {[%emt 0:01:17]} 31. Bxc2 {[%emt 0:00:04]} Rxc2 {[%emt 0:00:03]} 32. Rb7+ {[%emt 0:00:04]} Kf6 {[%emt 0:01:59]} 33. e3 {[%emt 0:00:12]} Rd2 {[%emt 0:04:38]} 34. Rxa7 {[%emt 0:04:25]} Rxd5 {[%emt 0:00:37]} 35. Rb7 {[%emt 0:01:00]} Bc3 {[%emt 0:00:00]} 36. a6 {[%emt 0:00:00]} Ra5 {[%emt 0:00:00]} 37. Rb6+ {[%emt 0:00:32]} Kf5 {[%emt 0:01:31]} 38. Rxh6 {[%emt 0:05:05]} f6 {[%emt 0:00:08]} 39. Rh5+ {[%emt 0:00:10]} Kg6 {[%emt 0:01:00]} 40. Rh4 {[%emt 0:00:13]} Rxa6 {[%emt 0:00:08]} 41. Rc4 {[%emt 0:00:23]} Ra1+ {[%emt 0:00:35]} 42. Kg2 {[%emt 0:00:00]} Ba5 {[%emt 0:00:38]} 43. Rc6 {[%emt 0:00:24]} Bb4 {[%emt 0:00:23]} 44. h4 {[%emt 0:02:36]} Be7 {[%emt 0:01:26]} 45. Rc7 {[%emt 0:01:34]} Bf8 {[%emt 0:01:46]} 46. g4 {[%emt 0:01:23]} Ra6 {[%emt 0:01:39]} 47. Rc8 {[%emt 0:00:22]} Bg7 {[%emt 0:00:30]} 48. Rc7 {[%emt 0:00:00]} 1/2-1/2

[Event "Belt and Road Women 2024"]
[Site "Yuecheng Shaoxing"]
[Date "2024.07.26"]
[Round "3.14"]
[White "Zhang, Lanlin"]
[Black "Wang, Yu A."]
[Result "1/2-1/2"]
[ECO "C71"]
[WhiteElo "2161"]
[BlackElo "2234"]
[Annotator "RC"]
[PlyCount "60"]
[EventDate "2024.08.01"]
[EventType "swiss"]
[EventCountry "CHN"]
[SourceTitle "playchess.com"]
[Source "ChessBase"]
[SourceQuality "1"]
[TimeControl "5400+30"]

1. e4 {[%emt 0:00:02]} e5 {[%emt 0:00:02]} 2. Nf3 {[%emt 0:00:06]} Nc6 {[%emt 0:00:01]} 3. Bb5 {[%emt 0:00:06]} a6 {[%emt 0:00:02]} 4. Ba4 {[%emt 0:00:06]} d6 {[%emt 0:00:03]} 5. d4 {[%emt 0:00:07]} b5 {[%emt 0:03:27]} 6. Bb3 {[%emt 0:00:33]} Nxd4 {[%emt 0:00:29]} 7. Nxd4 {[%emt 0:00:06]} exd4 {[%emt 0:00:01]} 8. a4 {[%emt 0:00:06]} bxa4 {[%emt 0:25:28]} 9. Bxa4+ {[%emt 0:16:20]} Bd7 {[%emt 0:00:02]} 10. Qxd4 {[%emt 0:00:09]} Nf6 {[%emt 0:00:30]} 11. Nc3 {[%emt 0:01:09]} Be7 {[%emt 0:02:17]} 12. O-O {[%emt 0:02:44]} O-O {[%emt 0:01:00]} 13. h3 {[%emt 0:00:19]} Qc8 {[%emt 0:14:35]} 14. Re1 {[%emt 0:08:02]} Re8 {[%emt 0:03:54]} 15. b3 {[%emt 0:04:44]} Bxa4 {[%emt 0:12:43]} 16. Rxa4 {[%emt 0:00:44]} Nd7 {[%emt 0:00:37]} 17. Nd5 {[%emt 0:00:59]} Bf8 {[%emt 0:01:06]} 18. Bb2 {[%emt 0:06:47]} c6 {[%emt 0:01:58]} 19. Nc3 {[%emt 0:07:52]} Nc5 {[%emt 0:10:41]} 20. Raa1 {[%emt 0:00:36]} Re6 {[%emt 0:01:14]} 21. f4 {[%emt 0:08:03]} Qe8 {[%emt 0:04:16]} 22. Re2 {[%emt 0:08:39]} f5 {[%emt 0:07:24]} 23. Rae1 {[%emt 0:05:10]} Nxe4 {[%emt 0:00:25]} 24. Nxe4 {[%emt 0:01:28]} Rxe4 {[%emt 0:00:01]} 25. Rxe4 {[%emt 0:00:07]} fxe4 {[%emt 0:00:01]} 26. Rxe4 {[%emt 0:00:05]} Qd7 {[%emt 0:01:45]} 27. Re1 {[%emt 0:03:22]} Re8 {[%emt 0:01:36]} 28. Ra1 {[%emt 0:01:30]} Qf5 {[%emt 0:01:04]} 29. Qd2 {[%emt 0:03:27]} Qb5 {[%emt 0:02:05]} 30. Re1 {[%emt 0:03:45]} Rxe1+ {[%emt 0:00:02]} 1/2-1/2

[Event "Belt and Road Women 2024"]
[Site "Yuecheng Shaoxing"]
[Date "2024.07.26"]
[Round "3.15"]
[White "Ha, Yihan"]
[Black "Wang, Chuqiao"]
[Result "1-0"]
[ECO "A11"]
[WhiteElo "2166"]
[BlackElo "2278"]
[Annotator "RC"]
[PlyCount "123"]
[EventDate "2024.08.01"]
[EventType "swiss"]
[EventCountry "CHN"]
[SourceTitle "playchess.com"]
[Source "ChessBase"]
[SourceQuality "1"]
[TimeControl "5400+30"]

1. Nf3 {[%emt 0:00:03]} d5 {[%emt 0:00:26]} 2. g3 {[%emt 0:00:07]} c6 {[%emt 0:00:14]} 3. Bg2 {[%emt 0:00:13]} Bg4 {[%emt 0:00:07]} 4. c4 {[%emt 0:00:15]} e6 {[%emt 0:00:04]} 5. O-O {[%emt 0:01:14]} Nf6 {[%emt 0:00:17]} 6. Qb3 {[%emt 0:02:34]} Qb6 {[%emt 0:01:25]} 7. d4 {[%emt 0:01:31]} Nbd7 {[%emt 0:03:50]} 8. h3 {[%emt 0:03:26]} Bf5 {[%emt 0:01:24]} 9. c5 {[%emt 0:05:35]} Qa6 {[%emt 0:01:46]} 10. Nc3 {[%emt 0:08:18]} b6 {[%emt 0:02:13]} 11. cxb6 {[%emt 0:01:21]} axb6 {[%emt 0:06:20]} 12. Nh4 {[%emt 0:03:21]} Bg6 {[%emt 0:00:33]} 13. Nxg6 {[%emt 0:01:54]} hxg6 {[%emt 0:00:07]} 14. e4 {[%emt 0:07:41]} dxe4 {[%emt 0:02:29]} 15. Nxe4 {[%emt 0:01:03]} Nd5 {[%emt 0:00:14]} 16. Bd2 {[%emt 0:01:14]} Be7 {[%emt 0:00:41]} 17. Rfc1 {[%emt 0:01:14]} Rc8 {[%emt 0:01:33]} 18. a4 {[%emt 0:01:36]} O-O {[%emt 0:04:43]} 19. a5 {[%emt 0:01:17]} bxa5 {[%emt 0:00:10]} 20. Rxa5 {[%emt 0:03:13]} Qb6 {[%emt 0:00:10]} 21. Qxb6 {[%emt 0:01:11]} N7xb6 {[%emt 0:00:06]} 22. Ra6 {[%emt 0:01:52]} Ra8 {[%emt 0:04:48]} 23. Rxa8 {[%emt 0:02:05]} Rxa8 {[%emt 0:00:08]} 24. Rxc6 {[%emt 0:01:17]} Ra2 {[%emt 0:01:47]} 25. Nc3 {[%emt 0:13:53]} Rxb2 {[%emt 0:01:28]} 26. Bc1 {[%emt 0:01:14]} Rb3 {[%emt 0:00:59]} 27. Nxd5 {[%emt 0:00:28]} Nxd5 {[%emt 0:01:59]} 28. Bxd5 {[%emt 0:02:15]} exd5 {[%emt 0:00:04]} 29. Rc8+ {[%emt 0:00:27]} Kh7 {[%emt 0:00:06]} 30. Be3 {[%emt 0:00:37]} Rb7 {[%emt 0:02:29]} 31. Kg2 {[%emt 0:01:20]} g5 {[%emt 0:00:12]} 32. Rc6 {[%emt 0:01:34]} f6 {[%emt 0:00:16]} 33. Ra6 {[%emt 0:05:00]} Kg6 {[%emt 0:00:18]} 34. Ra5 {[%emt 0:01:39]} Rd7 {[%emt 0:00:04]} 35. Kf3 {[%emt 0:01:03]} Kf5 {[%emt 0:01:07]} 36. Rb5 {[%emt 0:00:37]} Ke6 {[%emt 0:00:22]} 37. Rb6+ {[%emt 0:00:27]} Bd6 {[%emt 0:00:07]} 38. Ra6 {[%emt 0:01:06]} Rb7 {[%emt 0:00:09]} 39. h4 {[%emt 0:01:36]} Ke7 {[%emt 0:21:29]} 40. hxg5 {[%emt 0:00:23]} f5 {[%emt 0:00:02]} 41. g4 {[%emt 0:07:23]} fxg4+ {[%emt 0:13:55]} 42. Kxg4 {[%emt 0:00:03]} Bh2 {[%emt 0:12:54]} 43. Kf5 {[%emt 0:02:40]} Rb2 {[%emt 0:02:10]} 44. Ra7+ {[%emt 0:01:43]} Kf8 {[%emt 0:04:22]} 45. Ke6 {[%emt 0:00:50]} g6 {[%emt 0:00:16]} 46. Kxd5 {[%emt 0:02:32]} Bg1 {[%emt 0:00:07]} 47. Ra6 {[%emt 0:00:34]} Ke7 {[%emt 0:00:08]} 48. Rf6 {[%emt 0:00:52]} Rc2 {[%emt 0:00:18]} 49. Ke4 {[%emt 0:00:25]} Ra2 {[%emt 0:00:05]} 50. Kf3 {[%emt 0:00:19]} Bh2 {[%emt 0:00:34]} 51. Rxg6 {[%emt 0:00:16]} Bd6 {[%emt 0:00:04]} 52. Ke4 {[%emt 0:00:16]} Bb4 {[%emt 0:00:22]} 53. f4 {[%emt 0:00:25]} Re2 {[%emt 0:00:13]} 54. Kd3 {[%emt 0:00:22]} Re1 {[%emt 0:00:04]} 55. f5 {[%emt 0:00:56]} Rd1+ {[%emt 0:00:08]} 56. Kc4 {[%emt 0:00:31]} Ba3 {[%emt 0:00:30]} 57. Rg7+ {[%emt 0:01:21]} Kf8 {[%emt 0:00:15]} 58. f6 {[%emt 0:00:47]} Re1 {[%emt 0:00:11]} 59. Bf4 {[%emt 0:00:25]} Rf1 {[%emt 0:01:03]} 60. Be5 {[%emt 0:00:14]} Rg1 {[%emt 0:00:44]} 61. g6 {[%emt 0:00:51]} Rg2 {[%emt 0:00:18]} 62. Ra7 {[%emt 0:00:38]} 1-0

[Event "Belt and Road Women 2024"]
[Site "Yuecheng Shaoxing"]
[Date "2024.07.26"]
[Round "3.16"]
[White "Zhang, Xiao"]
[Black "Hu, Jiani"]
[Result "1/2-1/2"]
[ECO "D34"]
[WhiteElo "2193"]
[BlackElo "2148"]
[Annotator "RC"]
[PlyCount "204"]
[EventDate "2024.08.01"]
[EventType "swiss"]
[EventCountry "CHN"]
[SourceTitle "playchess.com"]
[Source "ChessBase"]
[SourceQuality "1"]
[TimeControl "5400+30"]

1. d4 {[%emt 0:00:03]} d5 {[%emt 0:00:06]} 2. c4 {[%emt 0:00:03]} e6 {[%emt 0:00:04]} 3. Nc3 {[%emt 0:00:03]} c5 {[%emt 0:00:07]} 4. cxd5 {[%emt 0:00:13]} exd5 {[%emt 0:00:04]} 5. Nf3 {[%emt 0:00:03]} Nc6 {[%emt 0:00:07]} 6. g3 {[%emt 0:00:07]} Nf6 {[%emt 0:00:08]} 7. Bg2 {[%emt 0:00:04]} Be7 {[%emt 0:00:08]} 8. O-O {[%emt 0:00:04]} O-O {[%emt 0:00:06]} 9. Bg5 {[%emt 0:00:04]} c4 {[%emt 0:01:10]} 10. b3 {[%emt 0:02:00]} cxb3 {[%emt 0:09:34]} 11. Qxb3 {[%emt 0:01:43]} Na5 {[%emt 0:02:34]} 12. Qb5 {[%emt 0:01:19]} Bd7 {[%emt 0:03:44]} 13. Qd3 {[%emt 0:00:55]} Be6 {[%emt 0:03:56]} 14. Rab1 {[%emt 0:02:04]} a6 {[%emt 0:05:10]} 15. Ne5 {[%emt 0:04:15]} Rc8 {[%emt 0:03:50]} 16. a4 {[%emt 0:04:07]} g6 {[%emt 0:06:49]} 17. g4 {[%emt 0:06:12]} Re8 {[%emt 0:14:59]} 18. h3 {[%emt 0:02:41]} Qd6 {[%emt 0:03:55]} 19. Rfc1 {[%emt 0:06:29]} Red8 {[%emt 0:06:33]} 20. f4 {[%emt 0:03:27]} Ne4 {[%emt 0:06:00]} 21. Bxe7 {[%emt 0:08:12]} Qxe7 {[%emt 0:00:07]} 22. Nxe4 {[%emt 0:02:12]} dxe4 {[%emt 0:00:06]} 23. Qxe4 {[%emt 0:03:39]} Rxc1+ {[%emt 0:07:29]} 24. Rxc1 {[%emt 0:00:57]} Bd5 {[%emt 0:01:59]} 25. Qd3 {[%emt 0:05:24]} Nb3 {[%emt 0:04:57]} 26. Bxd5 {[%emt 0:19:27]} Nxc1 {[%emt 0:00:26]} 27. Bxf7+ {[%emt 0:00:10]} Kg7 {[%emt 0:04:37]} 28. Qc4 {[%emt 0:13:03]} Nxe2+ {[%emt 0:06:59]} 29. Qxe2 {[%emt 0:00:06]} Rxd4 {[%emt 0:00:06]} 30. Qb2 {[%emt 0:08:31]} Qb4 {[%emt 0:01:18]} 31. Qxb4 {[%emt 0:02:43]} Rxb4 {[%emt 0:00:07]} 32. a5 {[%emt 0:02:06]} Rb5 {[%emt 0:01:13]} 33. Kf2 {[%emt 0:01:58]} Rxa5 {[%emt 0:00:16]} 34. Be6 {[%emt 0:02:02]} Kf6 {[%emt 0:02:46]} 35. Bg8 {[%emt 0:00:13]} Kg7 {[%emt 0:01:08]} 36. Bc4 {[%emt 0:00:27]} g5 {[%emt 0:00:51]} 37. Ke3 {[%emt 0:00:36]} b5 {[%emt 0:01:03]} 38. Bd3 {[%emt 0:00:19]} gxf4+ {[%emt 0:01:00]} 39. Kxf4 {[%emt 0:00:01]} b4 {[%emt 0:00:39]} 40. Ke4 {[%emt 0:00:52]} Ra1 {[%emt 0:00:17]} 41. Kd4 {[%emt 0:00:25]} a5 {[%emt 0:00:46]} 42. Kc4 {[%emt 0:01:35]} Rh1 {[%emt 0:01:36]} 43. Kb5 {[%emt 0:00:34]} b3 {[%emt 0:01:08]} 44. Nc4 {[%emt 0:00:09]} Rxh3 {[%emt 0:00:09]} 45. Bf5 {[%emt 0:00:15]} h5 {[%emt 0:01:00]} 46. Kxa5 {[%emt 0:00:45]} Rf3 {[%emt 0:01:27]} 47. Be6 {[%emt 0:00:31]} Kf6 {[%emt 0:00:23]} 48. Bc8 {[%emt 0:00:50]} hxg4 {[%emt 0:00:17]} 49. Bxg4 {[%emt 0:00:14]} Rf2 {[%emt 0:00:40]} 50. Kb4 {[%emt 0:00:34]} b2 {[%emt 0:00:23]} 51. Nxb2 {[%emt 0:00:03]} Rf4+ {[%emt 0:00:45]} 52. Nc4 {[%emt 0:00:03]} Rxg4 {[%emt 0:00:08]} 53. Kc5 {[%emt 0:00:02]} Ke6 {[%emt 0:00:40]} 54. Nd2 {[%emt 0:00:27]} Rf4 {[%emt 0:00:16]} 55. Nc4 {[%emt 0:00:18]} Rf3 {[%emt 0:00:58]} 56. Kd4 {[%emt 0:00:07]} Rh3 {[%emt 0:00:25]} 57. Kc5 {[%emt 0:00:06]} Rh5+ {[%emt 0:00:25]} 58. Kc6 {[%emt 0:00:19]} Rd5 {[%emt 0:00:16]} 59. Ne3 {[%emt 0:00:15]} Rd8 {[%emt 0:00:30]} 60. Kc5 {[%emt 0:00:09]} Rd3 {[%emt 0:01:01]} 61. Nc4 {[%emt 0:00:13]} Rd5+ {[%emt 0:00:24]} 62. Kc6 {[%emt 0:00:04]} Rh5 {[%emt 0:00:19]} 63. Ne3 {[%emt 0:00:22]} Ke5 {[%emt 0:01:19]} 64. Nc4+ {[%emt 0:02:02]} Kd4 {[%emt 0:00:00]} 65. Nb6 {[%emt 0:00:34]} Rh6+ {[%emt 0:00:00]} 66. Kb5 {[%emt 0:00:06]} Rd6 {[%emt 0:00:40]} 67. Na4 {[%emt 0:00:31]} Rd8 {[%emt 0:00:23]} 68. Nb6 {[%emt 0:00:14]} Rh8 {[%emt 0:00:29]} 69. Kc6 {[%emt 0:00:37]} Rh6+ {[%emt 0:00:14]} 70. Kb5 {[%emt 0:00:12]} Rg6 {[%emt 0:00:35]} 71. Nd7 {[%emt 0:01:15]} Rg7 {[%emt 0:01:03]} 72. Nb6 {[%emt 0:00:07]} Rg5+ {[%emt 0:00:24]} 73. Kc6 {[%emt 0:00:31]} Ra5 {[%emt 0:00:19]} 74. Nd7 {[%emt 0:00:18]} Ra6+ {[%emt 0:00:46]} 75. Nb6 {[%emt 0:00:16]} Ke5 {[%emt 0:01:02]} 76. Kc5 {[%emt 0:01:05]} Ra5+ {[%emt 0:00:15]} 77. Kb4 {[%emt 0:01:05]} Ra1 {[%emt 0:00:15]} 78. Kc5 {[%emt 0:00:20]} Rc1+ {[%emt 0:00:17]} 79. Nc4+ {[%emt 0:00:05]} Ke4 {[%emt 0:00:12]} 80. Kb5 {[%emt 0:00:07]} Kd4 {[%emt 0:00:12]} 81. Nb6 {[%emt 0:00:20]} Rc7 {[%emt 0:00:32]} 82. Na4 {[%emt 0:00:27]} Rc4 {[%emt 0:00:58]} 83. Nb6 {[%emt 0:00:11]} Rc1 {[%emt 0:00:27]} 84. Nd7 {[%emt 0:00:19]} Rc7 {[%emt 0:00:52]} 85. Nb6 {[%emt 0:00:04]} Rc5+ {[%emt 0:00:29]} 86. Kb4 {[%emt 0:00:08]} Rh5 {[%emt 0:00:35]} 87. Nd7 {[%emt 0:00:30]} Rg5 {[%emt 0:00:24]} 88. Nb6 {[%emt 0:00:12]} Re5 {[%emt 0:00:43]} 89. Nd7 {[%emt 0:00:19]} Re6 {[%emt 0:00:19]} 90. Kb5 {[%emt 0:00:06]} Re7 {[%emt 0:00:34]} 91. Nb6 {[%emt 0:00:06]} Re6 {[%emt 0:00:43]} 92. Nd7 {[%emt 0:00:11]} Rd6 {[%emt 0:00:23]} 93. Nb6 {[%emt 0:00:05]} Rh6 {[%emt 0:00:30]} 94. Nd7 {[%emt 0:00:08]} Rh7 {[%emt 0:00:26]} 95. Nb6 {[%emt 0:00:07]} Rc7 {[%emt 0:00:14]} 96. Na4 {[%emt 0:00:09]} Rc4 {[%emt 0:00:33]} 97. Nb6 {[%emt 0:00:05]} Rc5+ {[%emt 0:00:41]} 98. Kb4 {[%emt 0:00:03]} Rc1 {[%emt 0:00:34]} 99. Kb5 {[%emt 0:00:04]} Rc2 {[%emt 0:00:40]} 100. Na4 {[%emt 0:00:08]} Rc1 {[%emt 0:00:31]} 101. Nb6 {[%emt 0:00:06]} Rc5+ {[%emt 0:00:23]} 102. Kb4 {[%emt 0:00:03]} Rc7 {[%emt 0:00:26]} 1/2-1/2